bitfinex-derivatives/quotes_BTCF0:USTF0_20251115
["timestamp","ask_amount","ask_price","bid_price","bid_amount"]
[1763172479311,0.56777548,95496.0,95495.0,0.00471226]
[1763172480205,0.56777548,95496.0,95495.0,0.00571226]
[1763172480703,0.56777548,95496.0,95495.0,0.00471226]
[1763172482806,0.56977548,95496.0,95495.0,0.00471226]
[1763172483510,0.56877548,95496.0,95495.0,0.00471226]
[1763172483711,0.56977548,95496.0,95495.0,0.03745226]
[1763172484008,0.56977548,95496.0,95495.0,0.00471226]
[1763172485208,0.56977548,95496.0,95495.0,0.03745226]
[1763172485404,0.56877548,95496.0,95495.0,0.03745226]
[1763172485711,0.56977548,95496.0,95495.0,0.03745226]
[1763172486010,0.56877548,95496.0,95495.0,0.00471226]
[1763172486201,0.56977548,95496.0,95495.0,0.00471226]
[1763172489411,0.06443,95492.0,95491.0,0.09697]
[1763172489609,0.08740258,95492.0,95491.0,0.09697]
[1763172489812,0.06443,95491.0,95490.0,0.00012773]
[1763172490012,0.08740258,95491.0,95490.0,0.00012773]
[1763172490213,0.20576728,95491.0,95490.0,0.00012773]
[1763172490516,0.20576728,95491.0,95490.0,0.06619773]
[1763172490705,0.20576728,95491.0,95490.0,0.06839576]
[1763172490912,0.20576728,95491.0,95490.0,0.08783576]
[1763172491517,0.17385728,95491.0,95490.0,0.08783576]
[1763172491714,0.14133728,95491.0,95490.0,0.08783576]
[1763172491908,0.001,95491.0,95490.0,0.08783576]
[1763172492412,0.08172145,95503.0,95502.0,0.06509]
[1763172492619,0.13698308,95503.0,95502.0,0.06509]
[1763172492918,0.25117429,95503.0,95502.0,0.06509]
[1763172495111,0.25217429,95503.0,95502.0,0.06509]
[1763172495806,0.18847429,95503.0,95502.0,0.06509]
[1763172496016,0.22100429,95503.0,95502.0,0.06509]
[1763172496218,0.0634954,95503.0,95502.0,0.1698889]
[1763172496410,0.000157,95505.0,95504.0,0.06509]
[1763172496411,2.4e-06,95505.0,95504.0,0.06509]
[1763172496610,0.0637,95525.0,95524.0,0.06509]
[1763172496816,0.0637,95521.0,95520.0,0.00219803]
[1763172497316,0.0637,95503.0,95502.0,0.42589]
[1763172498913,0.001,95505.0,95504.0,0.06509]
[1763172499118,0.000157,95512.0,95511.0,0.06509]
[1763172499423,0.031687,95512.0,95511.0,0.06509]
[1763172500018,0.000157,95512.0,95511.0,0.42589]
[1763172500912,0.001157,95512.0,95511.0,0.42589]
[1763172501513,0.002157,95512.0,95511.0,0.42589]
[1763172502519,0.001157,95512.0,95511.0,0.42589]
[1763172502715,0.002157,95512.0,95511.0,0.42589]
[1763172508311,0.06207,95536.0,95535.0,0.06]
[1763172508516,0.0849888,95536.0,95535.0,0.06]
[1763172508723,0.20228297,95536.0,95535.0,0.06]
[1763172509814,0.22021297,95536.0,95535.0,0.06]
[1763172510017,0.06207,95531.0,95530.0,0.00219803]
[1763172510315,0.18279293,95531.0,95530.0,0.06219803]
[1763172510714,0.06207,95531.0,95530.0,0.06219803]
[1763172511415,0.06307,95531.0,95530.0,0.06219803]
[1763172512018,0.17423308,95531.0,95530.0,0.00219803]
[1763172512223,0.19696699,95531.0,95530.0,0.00219803]
[1763172512820,0.06207,95527.0,95526.0,0.000157]
[1763172513217,0.17280118,95527.0,95526.0,0.000157]
[1763172520422,0.19557309,95527.0,95526.0,0.000157]
[1763172524724,0.19657309,95527.0,95526.0,0.000157]
[1763172526224,0.19557309,95527.0,95526.0,0.000157]
[1763172527727,0.19657309,95527.0,95526.0,0.000157]
[1763172530035,0.19657309,95527.0,95526.0,0.029997]
[1763172530521,0.19657309,95527.0,95526.0,0.000157]
[1763172531544,0.19657309,95527.0,95526.0,0.029997]
[1763172531830,0.19657309,95527.0,95526.0,0.060157]
[1763172532240,0.19657309,95527.0,95526.0,0.029997]
[1763172532927,0.19657309,95527.0,95526.0,0.000157]
[1763172534130,0.06207,95523.0,95522.0,0.09694]
[1763172534338,0.08484191,95523.0,95522.0,0.07502369]
[1763172534634,0.08484191,95523.0,95517.0,0.08584]
[1763172534635,0.06207,95518.0,95517.0,0.08584]
[1763172534832,0.44564191,95518.0,95517.0,0.08584]
[1763172535038,0.55466675,95518.0,95517.0,0.02984]
[1763172535422,0.55466675,95518.0,95517.0,0.06]
[1763172535936,0.55466675,95518.0,95517.0,0.02984]
[1763172536739,0.55472359,95518.0,95517.0,0.02984]
[1763172536931,0.06207,95509.0,95508.0,0.536277]
[1763172537234,0.20398337,95509.0,95508.0,0.517907]
[1763172538331,0.20398337,95509.0,95508.0,0.535057]
[1763172538531,0.20398337,95509.0,95508.0,0.517907]
[1763172539234,0.20398337,95509.0,95508.0,0.157107]
[1763172539637,0.20398337,95509.0,95508.0,0.060157]
[1763172542132,0.20398337,95509.0,95508.0,0.029997]
[1763172542333,0.20398337,95509.0,95508.0,0.058687]
[1763172544338,0.20398337,95509.0,95508.0,0.075837]
[1763172549840,0.20398337,95509.0,95508.0,0.058687]
[1763172550428,0.20398337,95509.0,95508.0,0.000157]
[1763172551938,0.05425,95501.0,95500.0,0.21189]
[1763172552141,0.05425,95501.0,95500.0,0.18282]
[1763172552142,0.07704748,95501.0,95500.0,0.18282]
[1763172552447,0.05425,95491.0,95490.0,0.07092773]
[1763172552740,0.05425,95491.0,95490.0,0.07312576]
[1763172554048,0.05325,95491.0,95490.0,0.07312576]
[1763172554741,0.05325,95491.0,95490.0,0.07412576]
[1763172554937,0.05325,95491.0,95490.0,0.07512576]
[1763172555845,0.05325,95491.0,95490.0,0.06008576]
[1763172556532,0.52760967,95491.0,95490.0,0.00432576]
[1763172556733,0.52760967,95491.0,95490.0,0.00212773]
[1763172556941,0.55039283,95491.0,95490.0,0.00212773]
[1763172557639,0.55039283,95491.0,95490.0,0.00112773]
[1763172557943,0.55039283,95491.0,95490.0,0.00012773]
[1763172560648,0.05425,95487.0,95486.0,0.05602182]
[1763172561042,0.136677,95487.0,95486.0,0.05602182]
[1763172561245,0.163247,95487.0,95486.0,0.05602182]
[1763172561745,0.16336694,95487.0,95486.0,0.05602182]
[1763172562337,0.16336694,95487.0,95486.0,0.00026182]
[1763172564242,0.18613734,95487.0,95486.0,0.00026182]
[1763172566342,0.05425,95483.0,95482.0,0.0044632]
[1763172566549,0.0770204,95483.0,95482.0,0.0044632]
[1763172566742,0.1941537,95483.0,95482.0,0.0044632]
[1763172568945,0.1941537,95483.0,95482.0,0.0597532]
[1763172573554,0.1896906,95483.0,95482.0,0.05529]
[1763172574942,0.1399037,95483.0,95482.0,0.05529]
[1763172575241,0.1171333,95483.0,95482.0,0.05529]
[1763172575442,0.13986533,95483.0,95482.0,0.05529]
[1763172576142,0.13986857,95483.0,95482.0,0.05529]
[1763172576442,0.02273527,95483.0,95482.0,0.05529]
[1763172576646,0.00011994,95487.0,95486.0,0.05314]
[1763172576954,0.02285503,95487.0,95486.0,0.05314]
[1763172577453,0.00011994,95487.0,95486.0,0.1579565]
[1763172579151,0.00015709,95496.0,95495.0,0.05314]
[1763172579351,0.02290377,95496.0,95495.0,0.05314]
[1763172579554,0.13252523,95496.0,95495.0,0.05314]
[1763172579947,0.02290377,95496.0,95495.0,0.05314]
[1763172580449,0.00015709,95496.0,95495.0,0.05314]
[1763172581051,0.05182709,95496.0,95495.0,0.05314]
[1763172581241,0.55215299,95496.0,95495.0,0.02692]
[1763172581557,0.05167,95491.0,95490.0,0.05533803]
[1763172581751,0.07442022,95491.0,95490.0,0.05533803]
[1763172581956,0.18537379,95491.0,95490.0,0.05533803]
[1763172584855,0.18537379,95491.0,95490.0,0.02911803]
[1763172585057,0.18537379,95491.0,95490.0,0.05533803]
[1763172585749,0.18537379,95491.0,95490.0,0.07113803]
[1763172586253,0.18537379,95491.0,95490.0,0.00219803]
[1763172586452,0.18537379,95491.0,95490.0,0.02911803]
[1763172586853,0.18537379,95491.0,95490.0,0.00219803]
[1763172587253,0.05167,95479.0,95478.0,0.06894]
[1763172592152,0.16417422,95479.0,95478.0,0.05314]
[1763172594164,0.11250422,95479.0,95478.0,0.05314]
[1763172594469,0.3608,95486.0,95475.0,0.0158]
[1763172594470,0.3608,95486.0,95485.0,0.06894]
[1763172594763,0.05182709,95496.0,95495.0,0.06894]
[1763172594947,0.07458757,95496.0,95495.0,0.06894]
[1763172595153,0.18754023,95496.0,95495.0,0.06894]
[1763172595352,0.16213023,95496.0,95495.0,0.06894]
[1763172595550,0.16213023,95496.0,95495.0,0.1737466]
[1763172596265,0.13936975,95496.0,95495.0,0.1737466]
[1763172597362,0.16477975,95496.0,95495.0,0.1737466]
[1763172597565,0.13936975,95496.0,95495.0,0.1737466]
[1763172597960,0.16333975,95496.0,95495.0,0.1737466]
[1763172600867,0.13936975,95496.0,95495.0,0.1737466]
[1763172601063,0.16333975,95496.0,95495.0,0.1737466]
[1763172601265,0.16333975,95496.0,95495.0,0.06894]
[1763172603164,0.18608362,95496.0,95495.0,0.06894]
[1763172603563,0.16333975,95496.0,95495.0,0.06894]
[1763172605370,0.18608939,95496.0,95495.0,0.06894]
[1763172607267,0.16211939,95496.0,95495.0,0.06894]
[1763172607472,0.18608939,95496.0,95495.0,0.06894]
[1763172608670,0.16333975,95496.0,95495.0,0.06894]
[1763172608870,0.18608902,95496.0,95495.0,0.06894]
[1763172610670,0.13585902,95496.0,95495.0,0.06894]
[1763172610868,0.00015709,95496.0,95495.0,0.06894]
[1763172612770,0.4075,95509.0,95508.0,0.02338]
[1763172612977,0.43024497,95509.0,95508.0,0.02338]
[1763172613178,0.54541135,95509.0,95508.0,0.02338]
[1763172613376,0.54541135,95509.0,95508.0,0.04756]
[1763172615478,0.18461135,95509.0,95508.0,0.04756]
[1763172616281,0.0467,95505.0,95504.0,0.13342]
[1763172616484,0.06944497,95505.0,95504.0,0.13342]
[1763172616674,0.18177658,95505.0,95504.0,0.13342]
[1763172619169,0.15903161,95505.0,95504.0,0.13342]
[1763172619375,0.04685709,95518.0,95517.0,0.04756]
[1763172619680,0.18299456,95518.0,95517.0,0.04756]
[1763172620682,0.18399456,95518.0,95517.0,0.04756]
[1763172621083,0.18499456,95518.0,95517.0,0.04756]
[1763172622580,0.18499456,95518.0,95517.0,0.05823762]
[1763172623581,0.13829456,95518.0,95517.0,0.05823762]
[1763172623784,0.3608,95527.0,95525.0,0.1663037]
[1763172623982,0.02366,95545.0,95544.0,0.06101]
[1763172624187,0.0467,95527.0,95526.0,0.02338]
[1763172624485,0.15802556,95527.0,95526.0,0.02338]
[1763172624988,0.15802556,95527.0,95526.0,0.04756]
[1763172625377,0.06940692,95527.0,95526.0,0.04756]
[1763172625573,0.02366,95521.0,95520.0,0.04756]
[1763172625881,0.15749398,95521.0,95520.0,0.04975803]
[1763172626079,0.18020135,95521.0,95520.0,0.04975803]
[1763172627286,0.15749398,95521.0,95520.0,0.04975803]
[1763172627892,0.15749398,95521.0,95520.0,0.06300803]
[1763172628878,0.13445398,95521.0,95520.0,0.06300803]
[1763172629099,0.13445398,95521.0,95520.0,0.42380803]
[1763172630981,0.40397,95533.0,95532.0,0.04452]
[1763172631182,0.40397,95533.0,95532.0,0.05777]
[1763172631484,0.04317,95531.0,95530.0,0.00219803]
[1763172631888,0.15947269,95531.0,95530.0,0.00219803]
[1763172632994,0.16047269,95531.0,95530.0,0.00219803]
[1763172633692,0.16147269,95531.0,95530.0,0.00219803]
[1763172635292,0.16147269,95531.0,95530.0,0.02514803]
[1763172635494,0.16147269,95531.0,95530.0,0.00219803]
[1763172636389,0.16147269,95531.0,95520.0,0.37405]
[1763172636599,0.04317,95521.0,95520.0,0.04671803]
[1763172636887,0.15557834,95521.0,95520.0,0.04671803]
[1763172637300,0.15557834,95521.0,95520.0,0.05996803]
[1763172639698,0.15557834,95521.0,95520.0,0.42076803]
[1763172640283,0.13448834,95521.0,95520.0,0.52554713]
[1763172640487,0.04332699,95536.0,95535.0,0.04452]
[1763172640894,0.15975696,95536.0,95535.0,0.04452]
[1763172641695,0.16075696,95536.0,95535.0,0.04452]
[1763172642298,0.16175696,95536.0,95535.0,0.04452]
[1763172648595,0.00215699,95536.0,95535.0,0.04452]
[1763172650100,0.04532699,95536.0,95535.0,0.04452]
[1763172650300,0.16342651,95536.0,95535.0,0.04452]
[1763172651607,0.00215699,95536.0,95535.0,0.04452]
[1763172652502,0.40397,95546.0,95545.0,0.04452]
[1763172652803,0.51487042,95546.0,95545.0,0.04452]
[1763172653703,0.51587042,95546.0,95545.0,0.04452]
[1763172655002,0.51687042,95546.0,95545.0,0.04452]
[1763172657003,0.15607042,95546.0,95545.0,0.04452]
[1763172665206,0.15607042,95546.0,95545.0,0.05764]
[1763172666998,0.15607042,95546.0,95545.0,0.04452]
[1763172667909,0.15607042,95546.0,95545.0,0.02295]
[1763172668109,0.04338,95541.0,95540.0,0.04653803]
[1763172669111,0.04438,95541.0,95540.0,0.04653803]
[1763172673714,0.15925816,95541.0,95540.0,0.00219803]
[1763172673913,0.04456,95529.0,95528.0,0.09693]
[1763172674212,0.04456,95529.0,95528.0,0.14096]
[1763172674213,0.16023017,95529.0,95528.0,0.14096]
[1763172675517,0.3608,95534.0,95533.0,0.04403]
[1763172675705,0.40536,95534.0,95533.0,0.04403]
[1763172677914,0.04456,95541.0,95540.0,0.05755]
[1763172678108,0.04456,95541.0,95540.0,0.05974803]
[1763172678303,0.16098683,95541.0,95540.0,0.05974803]
[1763172679115,0.16198683,95541.0,95540.0,0.05974803]
[1763172680811,0.04556,95541.0,95540.0,0.05974803]
[1763172684216,0.03765252,95548.0,95547.0,0.1047496]
[1763172684416,0.3608,95554.0,95553.0,0.04403]
[1763172684616,0.40536,95554.0,95553.0,0.04403]
[1763172685504,0.04456,95551.0,95550.0,0.00219803]
[1763172685919,0.16551554,95551.0,95550.0,0.00219803]
[1763172687019,0.04456,95539.0,95538.0,0.04418699]
[1763172689327,0.04456,95539.0,95538.0,0.05700699]
[1763172693028,0.16107099,95539.0,95538.0,0.04418699]
[1763172694020,0.16107099,95539.0,95538.0,0.02266699]
[1763172694215,0.16107099,95539.0,95538.0,0.00015699]
[1763172694517,0.04493,95537.0,95536.0,0.09692]
[1763172694918,0.16340472,95537.0,95536.0,0.09692]
[1763172696728,0.16440472,95537.0,95536.0,0.09692]
[1763172700621,0.04493,95528.0,95527.0,0.02197699]
[1763172700922,0.15945244,95528.0,95527.0,0.00015699]
[1763172701431,0.15945244,95528.0,95527.0,0.04320699]
[1763172702025,0.15945244,95528.0,95527.0,0.02197699]
[1763172702231,0.15945244,95528.0,95527.0,0.00015699]
[1763172702625,0.15945244,95528.0,95527.0,0.02197699]
[1763172704141,0.15945244,95528.0,95527.0,0.04320699]
[1763172705331,0.15945244,95528.0,95527.0,0.02197699]
[1763172706030,0.15945244,95528.0,95527.0,0.04320699]
[1763172707123,0.13679244,95528.0,95527.0,0.04320699]
[1763172707329,0.3608,95538.0,95537.0,0.04305]
[1763172707530,0.38307,95538.0,95537.0,0.04305]
[1763172707729,0.52189543,95538.0,95537.0,0.04305]
[1763172707933,0.16109543,95538.0,95537.0,0.04305]
[1763172709133,0.16209543,95538.0,95537.0,0.04305]
[1763172717346,0.16109543,95538.0,95537.0,0.04305]
[1763172718751,0.04275,95531.0,95529.0,0.03734916]
[1763172718944,0.04275,95531.0,95520.0,0.06955751]
[1763172718945,0.40355,95531.0,95530.0,0.04562803]
[1763172719340,0.52165673,95531.0,95530.0,0.04562803]
[1763172720344,0.54445009,95531.0,95530.0,0.04562803]
[1763172721646,0.54445009,95531.0,95530.0,0.00219803]
[1763172722247,0.54445009,95531.0,95530.0,0.04562803]
[1763172723250,0.54445009,95531.0,95530.0,0.02458803]
[1763172723756,0.54445009,95531.0,95530.0,0.04562803]
[1763172723958,0.18365009,95531.0,95530.0,0.04562803]
[1763172726054,0.18365009,95531.0,95530.0,0.05822803]
[1763172730866,0.18366359,95531.0,95530.0,0.05822803]
[1763172731359,0.02280686,95531.0,95530.0,0.16299623]
[1763172735557,0.40593,95542.0,95541.0,0.04491]
[1763172735762,0.42873066,95542.0,95541.0,0.04491]
[1763172735965,0.53801823,95542.0,95541.0,0.04491]
[1763172737962,0.17721823,95542.0,95541.0,0.04491]
[1763172756995,0.04501,95541.0,95540.0,0.00219803]
[1763172757195,0.06781066,95541.0,95540.0,0.00219803]
[1763172757399,0.04501,95534.0,95521.0,0.05603751]
[1763172757598,0.42861066,95534.0,95519.0,0.05603751]
[1763172757797,0.49923363,95534.0,95518.0,0.3608]
[1763172757998,0.02280066,95533.0,95520.0,0.00219803]
[1763172758396,0.11563297,95532.0,95520.0,0.00219803]
[1763172758594,0.02280066,95531.0,95520.0,0.00219803]
[1763172758793,0.02280066,95531.0,95530.0,0.05753]
[1763172758993,0.3608,95552.0,95545.0,0.05753]
[1763172759301,0.14088292,95551.0,95545.0,0.05753]
[1763172759503,0.02300221,95550.0,95545.0,0.03437]
[1763172759804,0.11623617,95549.0,95545.0,0.03437]
[1763172760002,0.02300221,95548.0,95540.0,0.05972803]
[1763172760207,0.3608,95542.0,95540.0,0.05972803]
[1763172760395,0.02300221,95541.0,95540.0,0.05972803]
[1763172760702,0.13277852,95541.0,95540.0,0.05972803]
[1763172763710,0.13277852,95541.0,95531.0,0.11803]
[1763172763905,0.02300221,95540.0,95531.0,0.11803]
[1763172764206,0.14266592,95539.0,95531.0,0.11803]
[1763172764406,0.3608,95532.0,95531.0,0.11803]
[1763172764607,0.38380221,95532.0,95531.0,0.09693]
[1763172764794,0.49606981,95532.0,95531.0,0.0211]
[1763172765601,0.49606981,95532.0,95530.0,0.00219803]
[1763172765802,0.02300221,95531.0,95530.0,0.00219803]
[1763172766001,0.02300221,95531.0,95530.0,0.02329803]
[1763172766200,0.14311622,95531.0,95530.0,0.02329803]
[1763172767701,0.14311622,95531.0,95530.0,0.00219803]
[1763172768410,0.14311622,95531.0,95530.0,0.05972803]
[1763172768802,0.14309116,95531.0,95530.0,0.05972803]
[1763172770103,0.14409116,95531.0,95530.0,0.05972803]
[1763172770300,0.14409116,95531.0,95530.0,0.00219803]
[1763172772006,0.14309116,95531.0,95530.0,0.00219803]
[1763172773107,0.14309116,95531.0,95522.0,0.18278]
[1763172773412,0.3608,95528.0,95522.0,0.18278]
[1763172773614,0.38377715,95528.0,95522.0,0.18278]
[1763172773807,0.50374528,95528.0,95522.0,0.18278]
[1763172775908,0.50474528,95528.0,95522.0,0.18278]
[1763172776111,0.50474528,95528.0,95527.0,0.04441699]
[1763172776305,0.50474528,95528.0,95527.0,0.00015699]
[1763172777218,0.50374528,95528.0,95527.0,0.00015699]
[1763172778213,0.50374528,95528.0,95527.0,0.04444699]
[1763172787321,0.14294528,95528.0,95527.0,0.04444699]
[1763172787630,0.11996813,95528.0,95527.0,0.04444699]
[1763172789231,0.3608,95544.0,95543.0,0.04582]
[1763172789421,0.38373674,95544.0,95543.0,0.04582]
[1763172789726,0.49780863,95544.0,95543.0,0.04582]
[1763172795824,0.38373674,95544.0,95543.0,0.04582]
[1763172796937,0.02293674,95544.0,95543.0,0.04582]
[1763172808437,0.02293674,95544.0,95543.0,0.1505739]
[1763172810547,0.02293674,95544.0,95543.0,0.04582]
[1763172813057,0.02219614,95544.0,95543.0,0.04582]
[1763172813246,0.03765252,95564.0,95563.0,0.04376]
[1763172813446,0.0563708,95577.0,95576.0,0.1616077]
[1763172813640,0.02147,95587.0,95586.0,0.04376]
[1763172813839,0.04927,95596.0,95595.0,0.04376]
[1763172814243,0.02647,95596.0,95595.0,0.04376]
[1763172814449,0.04927,95596.0,95595.0,0.04376]
[1763172815547,0.04927,95596.0,95595.0,0.05400879]
[1763172816352,0.04927,95596.0,95595.0,0.04376]
[1763172817557,0.04927,95596.0,95590.0,0.36299803]
[1763172817558,0.04427,95591.0,95590.0,0.00219803]
[1763172817755,0.04427,95587.0,95586.0,0.00015691]
[1763172818166,0.16254092,95587.0,95586.0,0.00015691]
[1763172819951,0.16254092,95587.0,95586.0,0.04391691]
[1763172820153,0.16254092,95587.0,95586.0,0.02238691]
[1763172821475,0.16254092,95587.0,95586.0,0.00015691]
[1763172821673,0.16254092,95587.0,95586.0,0.02238691]
[1763172822265,0.16254092,95587.0,95586.0,0.00015691]
[1763172822874,0.16354092,95587.0,95586.0,0.00015691]
[1763172825168,0.18627645,95587.0,95586.0,0.00015691]
[1763172825771,0.18527645,95587.0,95586.0,0.00015691]
[1763172829172,0.04427,95581.0,95580.0,0.18267]
[1763172829372,0.42780553,95581.0,95580.0,0.18267]
[1763172829675,0.53770096,95581.0,95580.0,0.18267]
[1763172829877,0.51496543,95581.0,95580.0,0.11267]
[1763172830077,0.53770854,95581.0,95580.0,0.05734496]
[1763172830272,0.49443854,95581.0,95571.0,0.00015691]
[1763172830476,0.3608,95572.0,95571.0,0.00015691]
[1763172830675,0.3608,95572.0,95571.0,0.04391691]
[1763172830876,0.47444503,95572.0,95571.0,0.04391691]
[1763172831972,0.49719521,95572.0,95571.0,0.04391691]
[1763172832278,0.47444503,95572.0,95571.0,0.04391691]
[1763172832782,0.47544503,95572.0,95571.0,0.04391691]
[1763172834386,0.49820593,95572.0,95571.0,0.04391691]
[1763172835880,0.47544503,95572.0,95571.0,0.04391691]
[1763172836184,0.11364503,95572.0,95571.0,0.04391691]
[1763172836381,0.11464503,95572.0,95571.0,0.04391691]
[1763172836685,0.001,95572.0,95571.0,0.04391691]
[1763172836868,0.11843564,95572.0,95571.0,0.04391691]
[1763172839083,0.11743564,95572.0,95571.0,0.04391691]
[1763172839485,0.11856972,95579.0,95578.0,0.04509]
[1763172839682,0.14135521,95579.0,95578.0,0.04509]
[1763172839887,0.02278549,95579.0,95578.0,0.04509]
[1763172840088,0.13760497,95579.0,95578.0,0.04509]
[1763172840282,0.11481948,95579.0,95578.0,0.04509]
[1763172841690,0.11581948,95579.0,95578.0,0.02223]
[1763172841889,0.11581948,95579.0,95574.0,0.03654]
[1763172842090,0.11581948,95579.0,95574.0,0.01358]
[1763172842778,0.11581948,95579.0,95574.0,0.03654]
[1763172843185,0.47661948,95579.0,95571.0,0.00015691]
[1763172843684,0.47661948,95579.0,95571.0,0.04597691]
[1763172843685,0.47561948,95579.0,95571.0,0.04597691]
[1763172843890,0.47661948,95579.0,95571.0,0.04597691]
[1763172845292,0.47561948,95579.0,95574.0,0.01358]
[1763172845589,0.47661948,95579.0,95574.0,0.01358]
[1763172845988,0.47661948,95579.0,95574.0,0.0594]
[1763172846184,0.47661948,95579.0,95574.0,0.03654]
[1763172847484,0.47661948,95579.0,95574.0,0.01358]
[1763172849193,0.47661948,95579.0,95574.0,0.0594]
[1763172849396,0.47661948,95579.0,95574.0,0.03654]
[1763172849687,0.47661948,95579.0,95574.0,0.01358]
[1763172852490,0.03762899,95577.0,95574.0,0.01358]
[1763172852690,0.03762899,95575.0,95574.0,0.01358]
[1763172853091,0.11086903,95575.0,95574.0,0.05837]
[1763172854097,0.11186903,95575.0,95574.0,0.05837]
[1763172854792,0.11086903,95575.0,95574.0,0.05837]
[1763172854986,0.11186903,95575.0,95574.0,0.05837]
[1763172855191,0.001,95575.0,95574.0,0.05837]
[1763172855395,0.11239181,95575.0,95574.0,0.05837]
[1763172857098,0.11139181,95575.0,95574.0,0.05837]
[1763172857288,0.11239181,95575.0,95574.0,0.05837]
[1763172857796,0.001,95575.0,95574.0,0.05837]
[1763172858097,0.11339924,95575.0,95574.0,0.05837]
[1763172858299,0.15102823,95575.0,95574.0,0.05837]
[1763172859299,0.11339924,95575.0,95574.0,0.05837]
[1763172859489,0.15109691,95575.0,95574.0,0.05837]
[1763172861703,0.11339924,95575.0,95574.0,0.05837]
[1763172863596,0.11339924,95575.0,95574.0,0.01358]
[1763172864196,0.11339924,95575.0,95574.0,0.05846]
[1763172865604,0.1510943,95575.0,95574.0,0.05846]
[1763172868801,0.1510943,95575.0,95574.0,0.01358]
[1763172869002,0.11339924,95575.0,95571.0,0.00015691]
[1763172869299,0.03769925,95573.0,95571.0,0.02157691]
[1763172869505,0.03769925,95572.0,95571.0,0.04406691]
[1763172869701,0.1510673,95572.0,95571.0,0.04406691]
[1763172870496,0.11336805,95572.0,95571.0,0.04406691]
[1763172870693,0.1510673,95572.0,95571.0,0.04406691]
[1763172870896,0.03869925,95572.0,95571.0,0.04406691]
[1763172871098,0.11187384,95572.0,95571.0,0.04406691]
[1763172871396,0.14957309,95572.0,95571.0,0.04406691]
[1763172871598,0.11187384,95572.0,95571.0,0.04406691]
[1763172878508,0.11087384,95572.0,95571.0,0.04406691]
[1763172878709,0.11187384,95572.0,95571.0,0.04406691]
[1763172878916,0.001,95572.0,95571.0,0.04406691]
[1763172879114,0.11870694,95572.0,95571.0,0.04406691]
[1763172879308,0.21770694,95572.0,95571.0,0.00015691]
[1763172879509,0.11870694,95572.0,95571.0,0.00015691]
[1763172879708,0.11870694,95572.0,95571.0,0.04406691]
[1763172881319,0.17526006,95572.0,95571.0,0.04406691]
[1763172881818,0.11870694,95572.0,95571.0,0.04406691]
[1763172882013,0.15640596,95572.0,95571.0,0.04406691]
[1763172882209,0.15540596,95572.0,95571.0,0.04406691]
[1763172882408,0.15640596,95572.0,95571.0,0.04406691]
[1763172882810,0.11870694,95572.0,95571.0,0.04406691]
[1763172883714,0.15640736,95572.0,95571.0,0.04406691]
[1763172885622,0.11870694,95572.0,95571.0,0.04406691]
[1763172886013,0.11770694,95572.0,95571.0,0.04406691]
[1763172886221,0.11870694,95572.0,95571.0,0.04406691]
[1763172886410,0.001,95572.0,95571.0,0.04406691]
[1763172886714,0.11711456,95572.0,95571.0,0.04406691]
[1763172889116,0.11611456,95572.0,95571.0,0.04406691]
[1763172889314,0.11711456,95572.0,95571.0,0.04406691]
[1763172889518,0.001,95572.0,95571.0,0.04406691]
[1763172889711,0.11450878,95572.0,95571.0,0.04406691]
[1763172889913,0.15221103,95572.0,95571.0,0.04406691]
[1763172890109,0.11450878,95572.0,95571.0,0.04406691]
[1763172890920,0.001,95572.0,95571.0,0.40486691]
[1763172891313,0.03770225,95583.0,95571.0,0.40486691]
[1763172891314,0.03770225,95585.0,95584.0,0.04391]
[1763172891620,0.10997221,95585.0,95584.0,0.04391]
[1763172893730,0.11097221,95585.0,95584.0,0.04391]
[1763172895330,0.11097221,95585.0,95584.0,0.02142]
[1763172895536,0.11097221,95585.0,95580.0,0.05991803]
[1763172895837,0.03767008,95581.0,95580.0,0.05991803]
[1763172896230,0.14685367,95581.0,95580.0,0.05991803]
[1763172896933,0.10918359,95581.0,95580.0,0.01381]
[1763172897231,0.11147475,95584.0,95580.0,0.01381]
[1763172897440,0.11147475,95584.0,95571.0,0.00015691]
[1763172897737,0.05666691,95586.0,95571.0,0.00015691]
[1763172897738,0.3608,95572.0,95571.0,0.00015691]
[1763172898137,0.47436671,95572.0,95571.0,0.00015691]
[1763172899134,0.57436671,95572.0,95571.0,0.00015691]
[1763172899528,0.47436671,95572.0,95571.0,0.00015691]
[1763172899737,0.47536671,95572.0,95571.0,0.00015691]
[1763172900333,0.47536671,95572.0,95556.0,0.01381]
[1763172900532,0.3608,95569.0,95568.0,0.09368156]
[1763172900832,0.47507245,95569.0,95556.0,0.03675]
[1763172901035,0.3608,95557.0,95556.0,0.05844]
[1763172901434,0.47507245,95557.0,95556.0,0.05844]
[1763172902330,0.51271623,95557.0,95556.0,0.05844]
[1763172903433,0.51371623,95557.0,95556.0,0.05844]
[1763172904142,0.47607245,95557.0,95556.0,0.05844]
[1763172906539,0.57607245,95557.0,95553.0,0.08581]
[1763172906837,0.41729717,95554.0,95553.0,0.08581]
[1763172907040,0.3608,95554.0,95547.0,0.09706691]
[1763172907241,0.03760711,95548.0,95547.0,0.09706691]
[1763172907637,0.1479433,95548.0,95547.0,0.09706691]
[1763172907943,0.1479433,95548.0,95547.0,0.00015691]
[1763172907944,0.11033619,95548.0,95547.0,0.00015691]
[1763172908340,0.11349177,95553.0,95547.0,0.00015691]
[1763172908543,0.3608,95554.0,95547.0,0.00015691]
[1763172908937,0.11200202,95553.0,95547.0,0.00015691]
[1763172909644,0.11300202,95553.0,95547.0,0.00015691]
[1763172909842,0.05636207,95550.0,95547.0,0.00015691]
[1763172910046,0.05636207,95549.0,95547.0,0.00015691]
[1763172910247,0.12070118,95549.0,95547.0,0.00015691]
[1763172910540,0.12070118,95549.0,95544.0,0.03458]
[1763172910541,0.04884762,95549.0,95544.0,0.03458]
[1763172910747,0.3608,95545.0,95544.0,0.03458]
[1763172910933,0.3608,95545.0,95544.0,0.01305]
[1763172911130,0.48211153,95545.0,95544.0,0.01305]
[1763172912931,0.48311153,95545.0,95537.0,0.09692]
[1763172913137,0.39833349,95538.0,95537.0,0.09692]
[1763172913334,0.39833349,95538.0,95532.0,0.03484]
[1763172913538,0.3608,95533.0,95532.0,0.03484]
[1763172914037,0.47389358,95533.0,95532.0,0.03484]
[1763172915145,0.47389358,95533.0,95529.0,0.08583]
[1763172915344,0.47389358,95533.0,95526.0,0.00026171]
[1763172915345,0.62406388,95533.0,95526.0,0.00026171]
[1763172915533,0.3608,95527.0,95526.0,0.00026171]
[1763172915935,0.48150318,95527.0,95526.0,0.00026171]
[1763172916538,0.58150318,95527.0,95526.0,0.00026171]